fUST/lending_fUST_20260117
["ID","MTS","AMOUNT","RATE_DAILY","PERIOD"]
[402325401,1768659055537,-500.0,0.00016438,3]
[402325403,1768659055547,-500.0,0.00016438,3]
[402325405,1768659055555,-500.0,0.00016438,3]
[402325407,1768659055565,-1112.08,0.00016438,3]
[402325409,1768659055573,-632.75,0.00016438,3]
[402325410,1768659055583,-500.0,0.00016438,3]
[402325412,1768659055592,-500.0,0.00016438,3]
[402325414,1768659055601,-500.0,0.00016438,3]
[402325416,1768659055611,-332.91217118,0.00016438,3]
[402325418,1768659055620,-601.82,0.00016438,3]
[402325420,1768659055630,-450.64316952,0.00016438,3]
[402325422,1768659055641,-598.94,0.00016438,3]
[402325424,1768659055649,-1550.67,0.00016438,3]
[402325426,1768659055658,-2433.28,0.00016438,3]
[402325428,1768659055667,-508.15,0.00016438,3]
[402325430,1768659055677,-427.39365242,0.00016438,3]
[402325432,1768659055686,-500.0,0.00016438,3]
[402325434,1768659055695,-555.88,0.00016438,3]
[402325436,1768659055705,-500.0,0.00016438,3]
[402325438,1768659055714,-500.0,0.00016438,3]
[402325440,1768659055723,-500.0,0.00016438,3]
[402325442,1768659055733,-500.0,0.00016438,3]
[402325444,1768659055743,-1739.47,0.00016438,3]
[402325446,1768659055752,-500.0,0.00016438,3]
[402325448,1768659055762,-500.0,0.00016438,3]
[402325450,1768659055771,-500.0,0.00016438,3]
[402325452,1768659055781,-281.28402588,0.00016438,3]
[402325454,1768659055790,-500.0,0.00016438,3]
[402325457,1768659055800,-1598.4,0.00016438,3]
[402325459,1768659055809,-1063.53,0.00016438,3]
[402325461,1768659055819,-500.0,0.00016438,3]
[402325462,1768659055828,-500.0,0.00016438,3]
[402325464,1768659055837,-500.0,0.00016438,3]
[402325467,1768659055847,-500.0,0.00016438,3]
[402325469,1768659055860,-1469.78,0.00016438,3]
[402325470,1768659055869,-500.0,0.00016438,3]
[402325473,1768659055879,-500.0,0.00016438,3]
[402325474,1768659055888,-500.0,0.00016438,3]
[402325477,1768659055898,-500.0,0.00016438,3]
[402325479,1768659055908,-500.0,0.00016438,3]
[402325481,1768659055919,-934.75,0.00016438,3]
[402325483,1768659055928,-500.0,0.00016438,3]
[402325485,1768659055937,-915.24,0.00016438,3]
[402325487,1768659055947,-733.19,0.00016438,3]
[402325489,1768659055958,-500.0,0.00016438,3]
[402325491,1768659055968,-816.16,0.00016438,3]
[402325493,1768659055977,-500.0,0.00016438,3]
[402325495,1768659055987,-500.0,0.00016438,3]
[402325497,1768659055997,-1878.43,0.00016438,3]
[402325499,1768659056007,-500.0,0.00016438,3]
[402325501,1768659056016,-1089.71,0.00016438,3]
[402325503,1768659056026,-500.0,0.00016438,3]
[402325505,1768659056036,-500.0,0.00016438,3]
[402325507,1768659056046,-500.0,0.00016438,3]
[402325509,1768659056056,-500.0,0.00016438,3]
[402325511,1768659056065,-750.97,0.00016438,3]
[402325513,1768659056075,-500.0,0.00016438,3]
[402325515,1768659056084,-500.0,0.00016438,3]
[402325517,1768659056095,-1031.25,0.00016438,3]
[402325519,1768659056104,-1374.51,0.00016438,3]
[402325522,1768659056116,-1506.77,0.00016438,3]
[402325524,1768659056125,-500.0,0.00016438,3]
[402325526,1768659056135,-500.0,0.00016438,3]
[402325528,1768659056145,-654.05,0.00016438,3]
[402325530,1768659056155,-500.0,0.00016438,3]
[402325532,1768659056165,-1254.14,0.00016438,3]
[402325534,1768659056175,-500.0,0.00016438,3]
[402325536,1768659056184,-885.27,0.00016438,3]
[402325538,1768659056194,-1550.94,0.00016438,3]
[402325540,1768659056205,-500.0,0.00016438,3]
[402325542,1768659056214,-264.29964932,0.00016438,3]
[402325544,1768659056224,-500.0,0.00016438,3]
[402325546,1768659056236,-500.0,0.00016438,3]
[402325548,1768659056246,-522.75268188,0.00016438,3]
[402325550,1768659056256,-1929.23,0.00016438,3]
[402325552,1768659056265,-500.0,0.00016438,3]
[402325554,1768659056275,-500.0,0.00016438,3]
[402325556,1768659056285,-871.62,0.00016438,3]
[402325558,1768659056296,-500.0,0.00016438,3]
[402325560,1768659056306,-500.0,0.00016438,3]
[402325562,1768659056316,-500.0,0.00016438,3]
[402325564,1768659056326,-500.0,0.00016438,3]
[402325566,1768659056335,-500.0,0.00016438,3]
[402325568,1768659056345,-1606.32,0.00016438,3]
[402325570,1768659056355,-548.96,0.00016438,3]
[402325572,1768659056365,-500.0,0.00016438,3]
[402325574,1768659056375,-500.0,0.00016438,3]
[402325576,1768659056384,-500.0,0.00016438,3]
[402325578,1768659056394,-500.0,0.00016438,3]
[402325580,1768659056404,-2392.5,0.00016438,2]
[402325583,1768659056414,-2392.5,0.00016438,2]
[402325585,1768659056424,-500.0,0.00016438,3]
[402325587,1768659056433,-2392.5,0.00016438,2]
[402325589,1768659056442,-2392.5,0.00016438,2]
[402325590,1768659056452,-2392.5,0.00016438,2]
[402325593,1768659056462,-500.0,0.00016438,3]
[402325594,1768659056471,-2392.5,0.00016438,2]
[402325597,1768659056481,-2392.5,0.00016438,2]
[402325599,1768659056491,-2392.5,0.00016438,2]
[402325601,1768659056500,-2392.5,0.00016438,2]
[402325603,1768659056510,-2392.5,0.00016438,2]
[402325605,1768659056519,-747.4,0.00016438,3]
[402325607,1768659056529,-2392.5,0.00016438,2]
[402325609,1768659056538,-2392.5,0.00016438,2]
[402325611,1768659056548,-500.0,0.00016438,3]
[402325613,1768659056558,-977.24,0.00016438,3]
[402325615,1768659056567,-2392.5,0.00016438,2]
[402325617,1768659056576,-2392.5,0.00016438,2]
[402325619,1768659056586,-2392.5,0.00016438,2]
[402325621,1768659056596,-2392.5,0.00016438,2]
[402325623,1768659056606,-300.946978,0.00016438,2]
[402325625,1768659056615,-2392.5,0.00016438,2]
[402325627,1768659056625,-500.0,0.00016438,3]
[402325628,1768659056635,-500.0,0.00016438,3]
[402325630,1768659056645,-500.0,0.00016438,2]
[402325632,1768659056655,-2392.5,0.00016438,2]
[402325635,1768659056665,-300.946978,0.00016438,2]
[402325637,1768659056674,-2392.5,0.00016438,2]
[402325639,1768659056684,-300.946978,0.00016438,2]
[402325641,1768659056693,-2392.5,0.00016438,2]
[402325643,1768659056703,-1149.89,0.00016438,3]
[402325644,1768659056713,-2392.5,0.00016438,2]
[402325646,1768659056722,-2392.5,0.00016438,2]
[402325649,1768659056732,-2392.5,0.00016438,2]
[402325651,1768659056742,-2392.63255502,0.00016438,2]
[402325652,1768659056751,-500.0,0.00016438,3]
[402325654,1768659056762,-300.946978,0.00016438,2]
[402325657,1768659056772,-500.0,0.00016438,3]
[402325659,1768659056781,-300.946978,0.00016438,2]
[402325661,1768659056790,-500.0,0.00016438,3]
[402325663,1768659056800,-500.0,0.00016438,3]
[402325665,1768659056811,-300.946978,0.00016438,2]
[402325667,1768659056820,-500.0,0.00016438,3]
[402325669,1768659056829,-500.0,0.00016438,3]
[402325671,1768659056839,-300.946978,0.00016438,2]
[402325673,1768659056851,-500.0,0.00016438,3]
[402325675,1768659056861,-300.946978,0.00016438,2]
[402325677,1768659056871,-300.946978,0.00016438,2]
[402325679,1768659056880,-500.0,0.00016438,3]
[402325680,1768659056891,-300.946978,0.00016438,2]
[402325682,1768659056902,-300.946978,0.00016438,2]
[402325685,1768659056911,-500.0,0.00016438,2]
[402325687,1768659056921,-300.946971,0.00016438,2]
[402325689,1768659056933,-500.0,0.00016438,3]
[402325691,1768659056944,-500.0,0.00016438,3]
[402325693,1768659056953,-500.0,0.00016438,3]
[402325694,1768659056963,-574.13,0.00016438,3]
[402325697,1768659056973,-602.36,0.00016438,3]
[402325699,1768659056983,-500.0,0.00016438,3]
[402325701,1768659056992,-502.51,0.00016438,3]
[402325702,1768659057002,-435.20636976,0.00016438,3]
[402325704,1768659057011,-500.0,0.00016438,2]
[402325706,1768659057022,-228.977496,0.00016438,2]
[402325708,1768659057031,-228.977496,0.00016438,2]
[402325710,1768659057041,-228.977496,0.00016438,2]
[402325712,1768659057051,-228.977496,0.00016438,2]
[402325714,1768659057061,-228.977496,0.00016438,2]
[402325716,1768659057071,-228.977496,0.00016438,2]
[402325718,1768659057082,-228.977496,0.00016438,2]
[402325720,1768659057102,-228.977496,0.00016438,2]
[402325722,1768659057119,-228.977496,0.00016438,2]
[402325725,1768659057130,-228.977496,0.00016438,2]
[402325727,1768659057139,-228.977496,0.00016438,2]
[402325729,1768659057150,-228.977496,0.00016438,2]
[402325731,1768659057159,-3000.0,0.00016438,2]
[402325733,1768659057170,-602.5013427,0.00016438,2]
[402325735,1768659057180,-602.5013427,0.00016438,2]
[402325737,1768659057189,-153.0,0.00016438,2]
[402325739,1768659057201,-602.5013427,0.00016438,2]
[402325741,1768659057221,-153.0,0.00016438,2]
[402325743,1768659057231,-153.0,0.00016438,2]
[402325745,1768659057241,-602.5013427,0.00016438,2]
[402325747,1768659057253,-153.0,0.00016438,2]
[402325749,1768659057263,-602.5013427,0.00016438,2]
[402325751,1768659057276,-153.0,0.00016438,2]
[402325753,1768659057287,-159.0,0.000165,2]
[402325755,1768659057297,-11211.02013668,0.00016512,2]
[402325757,1768659057309,-514.84070869,0.00016527,2]
[402325759,1768659057321,-2487.15318209,0.00016527,2]
[402325761,1768659057344,-34692.55458483,0.00016527,2]
[402325763,1768659057366,-228.977496,0.00016527,2]
[402325765,1768659057376,-228.977496,0.00016527,2]
[402325767,1768659057388,-228.977496,0.00016527,2]
[402325769,1768659057398,-228.977496,0.00016527,2]
[402325771,1768659057410,-1500.0,0.0001656,2]
[402325773,1768659057420,-500.0,0.00016575,3]
[402325775,1768659057430,-150.88569815,0.00016575,3]
[402325777,1768659057442,-240.516403,0.00016575,7]
[402325779,1768659057452,-3625.557383,0.00016575,7]
[402325781,1768659057463,-13205.58024204,0.00016606,2]
[402325783,1768659057474,-10000.0,0.00016612,2]
[402325785,1768659057484,-452.52060236,0.00016669,17]
[402325787,1768659057498,-302.544,0.00016669,7]
[402325790,1768659057509,-308.6219387,0.00016685,2]
[402325792,1768659057520,-306.0,0.00016685,2]
[402325794,1768659057530,-602.5013427,0.00016685,2]
[402325796,1768659057541,-1232.8343314,0.00016686,2]
[402325798,1768659057552,-7079.808105,0.00016686,2]
[402325800,1768659057561,-1752.8183136,0.00016686,2]
[402325802,1768659057572,-180.10446059,0.00016689,2]
[402325804,1768659057581,-480.123749,0.00016689,7]
[402325806,1768659057591,-159.0,0.000167,2]
[402325808,1768659057602,-150.19066167,0.00016712,3]
[402325810,1768659057612,-500.0,0.00016712,3]
[402325812,1768659057622,-500.0,0.00016712,3]
[402325814,1768659057632,-500.0,0.00016712,3]
[402325816,1768659057642,-500.0,0.00016712,3]
[402325819,1768659057652,-295.27790826,0.00016712,3]
[402325821,1768659057662,-978.82,0.00016712,3]
[402325823,1768659057672,-500.0,0.00016712,3]
[402325825,1768659057682,-500.0,0.00016712,3]
[402325827,1768659057692,-500.0,0.00016712,3]
[402325829,1768659057703,-1000.0,0.00016712,2]
[402325831,1768659057714,-1229.39,0.00016712,3]
[402325833,1768659057724,-500.0,0.00016712,3]
[402325835,1768659057734,-500.0,0.00016712,3]
[402325837,1768659057744,-500.0,0.00016712,3]
[402325839,1768659057753,-556.53,0.00016712,3]
[402325841,1768659057763,-500.0,0.00016712,3]
[402325843,1768659057773,-500.0,0.00016712,3]
[402325845,1768659057783,-500.0,0.00016712,3]
[402325847,1768659057792,-500.0,0.00016712,3]
[402325849,1768659057803,-500.0,0.00016712,3]
[402325851,1768659057812,-500.0,0.00016712,3]
[402325853,1768659057823,-500.0,0.00016712,3]
[402325855,1768659057832,-672.56,0.00016712,3]
[402325857,1768659057842,-500.0,0.00016712,3]
[402325859,1768659057856,-792.58,0.00016712,3]
[402325861,1768659057866,-504.49,0.00016712,3]
[402325863,1768659057876,-673.73,0.00016712,3]
[402325865,1768659057886,-567.58,0.00016712,3]
[402325867,1768659057897,-1022.08,0.00016712,3]
[402325869,1768659057907,-500.0,0.00016712,3]
[402325871,1768659057918,-500.0,0.00016712,3]
[402325873,1768659057932,-500.0,0.00016712,3]
[402325876,1768659057943,-762.34,0.00016712,3]
[402325878,1768659057954,-500.0,0.00016712,3]
[402325880,1768659057964,-950.57,0.00016712,3]
[402325882,1768659057974,-500.0,0.00016712,3]
[402325884,1768659057984,-500.0,0.00016712,3]
[402325886,1768659057995,-500.0,0.00016712,3]
[402325888,1768659058005,-500.0,0.00016712,3]
[402325889,1768659058014,-500.0,0.00016712,3]
[402325891,1768659058024,-500.0,0.00016712,3]
[402325893,1768659058035,-574.969696,0.00016712,3]
[402325895,1768659058045,-1072.24,0.00016712,3]
[402325897,1768659058055,-541.31799653,0.00016712,3]
[402325899,1768659058065,-500.0,0.00016712,3]
[402325902,1768659058075,-216.1398381,0.00016712,3]
[402325904,1768659058086,-500.0,0.00016712,3]
[402325906,1768659058096,-500.0,0.00016712,3]
[402325908,1768659058106,-500.0,0.00016712,3]
[402325910,1768659058116,-507.22,0.00016712,3]
[402325912,1768659058126,-500.0,0.00016712,3]
[402325914,1768659058136,-500.0,0.00016712,3]
[402325916,1768659058147,-500.0,0.00016712,3]
[402325941,1768659058383,-544.42342876,0.00016712,3]
[402325943,1768659058393,-500.0,0.00016712,3]
[402325945,1768659058402,-836.71,0.00016712,3]
[402325947,1768659058411,-500.0,0.00016712,3]
[402325948,1768659058421,-474.92477012,0.00016712,3]
[402325950,1768659058430,-500.0,0.00016712,3]
[402325952,1768659058439,-500.0,0.00016712,3]
[402325954,1768659058449,-500.0,0.00016712,3]
[402325956,1768659058459,-500.0,0.00016712,3]
[402325958,1768659058469,-500.0,0.00016712,3]
[402325960,1768659058478,-500.0,0.00016712,3]
[402325962,1768659058489,-500.0,0.00016712,3]
[402325964,1768659058498,-500.0,0.00016712,3]
[402325966,1768659058508,-1098.82,0.00016712,3]
[402325968,1768659058517,-500.0,0.00016712,3]
[402325970,1768659058527,-500.0,0.00016712,3]
[402325972,1768659058536,-500.0,0.00016712,3]
[402325974,1768659058545,-500.0,0.00016712,3]
[402325976,1768659058554,-500.0,0.00016712,3]
[402325978,1768659058563,-1864.45,0.00016712,3]
[402325980,1768659058576,-500.0,0.00016712,3]
[402325982,1768659058585,-500.0,0.00016712,3]
[402325984,1768659058595,-772.16,0.00016712,3]
[402325986,1768659058604,-500.0,0.00016712,3]
[402325988,1768659058614,-500.0,0.00016712,3]
[402325990,1768659058623,-523.8,0.00016712,3]
[402325992,1768659058632,-500.0,0.00016712,3]
[402325994,1768659058642,-500.0,0.00016712,3]
[402325996,1768659058650,-500.0,0.00016712,3]
[402325998,1768659058661,-500.0,0.00016712,3]
[402325999,1768659058671,-785.13,0.00016712,3]
[402326001,1768659058680,-500.0,0.00016712,3]
[402326003,1768659058690,-395.32581344,0.00016712,3]
[402326005,1768659058699,-500.0,0.00016712,3]
[402326007,1768659058707,-1777.27,0.00016712,3]
[402326009,1768659058717,-529.4766639,0.00016712,3]
[402326011,1768659058726,-875.55,0.00016712,3]
[402326013,1768659058736,-500.0,0.00016712,3]
[402326015,1768659058745,-964.42,0.00016712,3]
[402326017,1768659058755,-564.35,0.00016712,3]
[402326019,1768659058765,-612.1,0.00016712,3]
[402326021,1768659058774,-500.0,0.00016712,3]
[402326023,1768659058783,-523.41303574,0.00016712,3]
[402326025,1768659058792,-643.39,0.00016712,3]
[402326027,1768659058801,-976.59,0.00016712,3]
[402326029,1768659058810,-500.0,0.00016712,3]
[402326031,1768659058819,-974.97,0.00016712,3]
[402326033,1768659058829,-1699.56,0.00016712,3]
[402326035,1768659058838,-500.0,0.00016712,3]
[402326037,1768659058847,-500.0,0.00016712,3]
[402326039,1768659058861,-500.0,0.00016712,3]
[402326041,1768659058870,-500.0,0.00016712,3]
[402326043,1768659058880,-999.91,0.00016712,3]
[402326045,1768659058889,-500.0,0.00016712,3]
[402326047,1768659058900,-500.0,0.00016712,3]
[402326049,1768659058909,-530.71,0.00016712,3]
[402326051,1768659058919,-500.0,0.00016712,3]
[402326053,1768659058929,-1003.52,0.00016712,3]
[402326054,1768659058939,-741.6,0.00016712,3]
[402326056,1768659058948,-500.0,0.00016712,3]
[402326058,1768659058957,-500.0,0.00016712,3]
[402326060,1768659058967,-565.41,0.00016712,3]
[402326062,1768659058975,-500.0,0.00016712,3]
[402326064,1768659058985,-979.46,0.00016712,3]
[402326066,1768659058994,-895.32,0.00016712,3]
[402326068,1768659059004,-904.31,0.00016712,3]
[402326070,1768659059013,-302.42547068,0.00016712,3]
[402326072,1768659059023,-903.29,0.00016712,3]
[402326074,1768659059032,-486.76739107,0.00016712,3]
[402326076,1768659059041,-500.0,0.00016712,3]
[402326078,1768659059050,-500.0,0.00016712,3]
[402326080,1768659059059,-500.0,0.00016712,3]
[402326082,1768659059068,-500.0,0.00016712,3]
[402326084,1768659059078,-500.0,0.00016712,3]
[402326085,1768659059087,-1000.0,0.00016712,2]
[402326088,1768659059096,-500.0,0.00016712,3]
[402326090,1768659059106,-500.0,0.00016712,3]
[402326091,1768659059115,-500.0,0.00016712,3]
[402326094,1768659059125,-692.98,0.00016712,3]
[402326096,1768659059135,-500.0,0.00016712,3]
[402326098,1768659059144,-465.90987905,0.00016712,3]
[402326099,1768659059154,-500.0,0.00016712,2]
[402326101,1768659059164,-500.0,0.00016712,3]
[402326103,1768659059174,-500.0,0.00016712,3]
[402326106,1768659059184,-500.0,0.00016712,3]
[402326107,1768659059194,-1541.12,0.00016712,3]
[402326109,1768659059204,-500.0,0.00016712,3]
[402326111,1768659059213,-1586.94,0.00016712,3]
[402326113,1768659059223,-501.5424196,0.00016712,3]
[402326115,1768659059233,-500.0,0.00016712,3]
[402326117,1768659059242,-500.0,0.00016712,3]
[402326119,1768659059251,-500.0,0.00016712,3]
[402326121,1768659059261,-500.0,0.00016712,3]
[402326123,1768659059270,-500.0,0.00016712,3]
[402326125,1768659059279,-557.26,0.00016712,3]
[402326127,1768659059288,-1200.0,0.00016712,2]
[402326129,1768659059298,-500.0,0.00016712,3]
[402326131,1768659059307,-960.56,0.00016712,3]
[402326133,1768659059316,-500.0,0.00016712,3]
[402326135,1768659059326,-1187.76,0.00016712,3]
[402326137,1768659059336,-500.0,0.00016712,3]
[402326139,1768659059345,-524.86,0.00016712,3]
[402326141,1768659059354,-562.19664467,0.00016712,3]
[402326143,1768659059364,-500.0,0.00016712,3]
[402326145,1768659059373,-500.0,0.00016712,3]
[402326146,1768659059382,-500.0,0.00016712,3]
[402326147,1768659059391,-2078.62,0.00016712,3]
[402326148,1768659059401,-500.0,0.00016712,3]
[402326149,1768659059409,-500.0,0.00016712,3]
[402326150,1768659059418,-500.0,0.00016712,3]
[402326151,1768659059428,-510.56,0.00016712,3]
[402326152,1768659059437,-500.0,0.00016712,3]
[402326153,1768659059446,-500.0,0.00016712,3]
[402326154,1768659059455,-500.0,0.00016712,3]
[402326155,1768659059464,-500.0,0.00016712,3]
[402326156,1768659059473,-500.0,0.00016712,3]
[402326157,1768659059482,-500.0,0.00016712,3]
[402326158,1768659059491,-504.11,0.00016712,3]
[402326159,1768659059500,-500.0,0.00016712,3]
[402326160,1768659059509,-500.0,0.00016712,3]
[402326161,1768659059518,-500.0,0.00016712,3]
[402326162,1768659059527,-500.0,0.00016712,3]
[402326163,1768659059535,-500.0,0.00016712,3]
[402326164,1768659059544,-500.0,0.00016712,3]
[402326165,1768659059553,-1289.75,0.00016712,3]
[402326166,1768659059562,-500.0,0.00016712,3]
[402326167,1768659059571,-500.0,0.00016712,3]
[402326169,1768659059580,-538.97966179,0.00016712,3]
[402326170,1768659059589,-759.35,0.00016712,3]
[402326173,1768659059599,-500.0,0.00016712,3]
[402326175,1768659059608,-500.0,0.00016712,3]
[402326177,1768659059618,-500.0,0.00016712,3]
[402326178,1768659059627,-500.0,0.00016712,3]
[402326180,1768659059637,-500.0,0.00016712,3]
[402326182,1768659059646,-566.37,0.00016712,3]
[402326185,1768659059655,-500.0,0.00016712,3]
[402326187,1768659059665,-500.0,0.00016712,3]
[402326188,1768659059674,-985.63,0.00016712,3]
[402326191,1768659059683,-1802.89,0.00016712,3]
[402326193,1768659059693,-500.0,0.00016712,3]
[402326195,1768659059702,-500.0,0.00016712,3]
[402326197,1768659059712,-924.88,0.00016712,3]
[402326199,1768659059721,-500.0,0.00016712,3]
[402326201,1768659059731,-503.23047835,0.00016712,3]
[402326203,1768659059741,-500.0,0.00016712,3]
[402326205,1768659059750,-502.72122114,0.00016712,3]
[402326206,1768659059760,-875.06,0.00016712,3]
[402326208,1768659059769,-788.81,0.00016712,3]
[402326211,1768659059779,-500.0,0.00016712,3]
[402326213,1768659059788,-500.0,0.00016712,3]
[402326214,1768659059798,-523.17,0.00016712,3]
[402326217,1768659059808,-500.0,0.00016712,3]
[402326219,1768659059818,-1398.2,0.00016712,3]
[402326221,1768659059828,-500.0,0.00016712,3]
[402326223,1768659059837,-228.977496,0.00016712,2]
[402326224,1768659059846,-228.977496,0.00016712,2]
[402326227,1768659059860,-228.977496,0.00016712,2]
[402326228,1768659059870,-500.0,0.00016712,3]
[402326230,1768659059879,-500.0,0.00016712,3]
[402326233,1768659059891,-228.977501,0.00016712,2]
[402326235,1768659059899,-752.83,0.00016712,3]
[402326237,1768659059910,-500.0,0.00016712,3]
[402326239,1768659059919,-500.0,0.00016712,3]
[402326241,1768659059931,-500.0,0.00016712,3]
[402326243,1768659059939,-500.0,0.00016712,3]
[402326245,1768659059948,-1507.14,0.00016712,3]
[402326247,1768659059957,-500.0,0.00016712,3]
[402326249,1768659059967,-500.0,0.00016712,3]
[402326251,1768659059977,-1240.14,0.00016712,3]
[402326253,1768659059986,-764.23,0.00016712,3]
[402326255,1768659059996,-646.22,0.00016712,3]
[402326257,1768659060006,-500.0,0.00016712,3]
[402326259,1768659060016,-500.0,0.00016712,3]
[402326261,1768659060026,-500.0,0.00016712,3]
[402326263,1768659060035,-500.0,0.00016712,3]
[402326265,1768659060044,-500.0,0.00016712,3]
[402326267,1768659060054,-500.0,0.00016712,3]
[402326269,1768659060064,-500.0,0.00016712,3]
[402326271,1768659060073,-500.0,0.00016712,3]
[402326273,1768659060083,-500.0,0.00016712,3]
[402326274,1768659060092,-1946.38,0.00016712,3]
[402326276,1768659060101,-500.0,0.00016712,3]
[402326278,1768659060113,-681.74,0.00016712,3]
[402326280,1768659060122,-500.0,0.00016712,3]
[402326282,1768659060132,-1174.25,0.00016712,3]
[402326284,1768659060141,-500.0,0.00016712,3]
[402326286,1768659060151,-1047.71,0.00016712,3]
[402326289,1768659060161,-500.0,0.00016712,3]
[402326290,1768659060170,-500.0,0.00016712,3]
[402326292,1768659060180,-500.0,0.00016712,3]
[402326294,1768659060189,-1121.76,0.00016712,3]
[402326296,1768659060199,-628.37,0.00016712,3]
[402326298,1768659060208,-500.0,0.00016712,3]
[402326300,1768659060217,-1173.68,0.00016712,3]
[402326302,1768659060227,-895.09,0.00016712,3]
[402326304,1768659060237,-1376.86,0.00016712,3]
[402326306,1768659060247,-500.0,0.00016712,3]
[402326308,1768659060257,-612.91517649,0.00016712,3]
[402326310,1768659060267,-512.63,0.00016712,3]
[402326312,1768659060276,-500.0,0.00016712,3]
[402326314,1768659060286,-500.0,0.00016712,3]
[402326316,1768659060296,-718.33,0.00016712,3]
[402326318,1768659060305,-763.87,0.00016712,3]
[402326320,1768659060316,-500.0,0.00016712,3]
[402326322,1768659060325,-500.0,0.00016712,3]
[402326325,1768659060335,-1290.77,0.00016712,3]
[402326326,1768659060345,-1726.7,0.00016712,3]
[402326328,1768659060354,-500.0,0.00016712,3]
[402326330,1768659060363,-500.0,0.00016712,3]
[402326332,1768659060373,-500.0,0.00016712,3]
[402326334,1768659060382,-887.81,0.00016712,3]
[402326336,1768659060392,-500.0,0.00016712,3]
[402326338,1768659060401,-500.0,0.00016712,3]
[402326340,1768659060410,-500.0,0.00016712,3]
[402326342,1768659060420,-500.0,0.00016712,3]
[402326344,1768659060430,-553.61,0.00016712,3]
[402326346,1768659060439,-1005.15,0.00016712,3]
[402326348,1768659060448,-500.0,0.00016712,3]
[402326350,1768659060458,-815.87,0.00016712,3]
[402326352,1768659060467,-500.0,0.00016712,3]
[402326354,1768659060476,-500.0,0.00016712,3]
[402326356,1768659060485,-822.47,0.00016712,3]
[402326358,1768659060495,-1463.58,0.00016712,3]
[402326360,1768659060504,-500.0,0.00016712,3]
[402326362,1768659060514,-600.01432001,0.00016712,3]
[402326364,1768659060523,-500.0,0.00016712,3]
[402326366,1768659060532,-500.0,0.00016712,3]
[402326368,1768659060542,-500.0,0.00016712,3]
[402326370,1768659060551,-500.0,0.00016712,3]
[402326372,1768659060560,-500.0,0.00016712,3]
[402326374,1768659060570,-500.0,0.00016712,3]
[402326375,1768659060579,-500.0,0.00016712,3]
[402326378,1768659060588,-500.0,0.00016712,3]
[402326379,1768659060598,-796.2,0.00016712,3]
[402326381,1768659060607,-500.0,0.00016712,3]
[402326384,1768659060616,-500.0,0.00016712,3]
[402326386,1768659060626,-500.0,0.00016712,3]
[402326395,1768659060708,-500.0,0.00016712,3]
[402326397,1768659060718,-500.0,0.00016712,3]
[402326399,1768659060727,-679.44,0.00016712,3]
[402326401,1768659060736,-510.91,0.00016712,3]
[402326403,1768659060745,-500.0,0.00016712,3]
[402326405,1768659060754,-824.67,0.00016712,3]
[402326407,1768659060763,-683.59,0.00016712,3]